fUST/lending_fUST_20250724
["ID","MTS","AMOUNT","RATE_DAILY","PERIOD"]
[374520450,1753333836257,-460.0,0.00019178,2]
[374520451,1753333836266,-460.0,0.00019178,2]
[374520452,1753333836276,-460.0,0.00019178,2]
[374520453,1753333836287,-460.0,0.00019178,2]
[374520454,1753333836301,-273.28962866,0.00019178,2]
[374520455,1753333836310,-440.33663325,0.00019178,2]
[374520456,1753333836320,-460.0,0.00019178,2]
[374520457,1753333836330,-460.0,0.00019178,2]
[374520458,1753333836340,-508.75,0.00019178,2]
[374520459,1753333836350,-460.0,0.00019178,2]
[374520460,1753333836359,-460.0,0.00019178,2]
[374520461,1753333836369,-460.0,0.00019178,2]
[374520462,1753333836379,-461.37692642,0.00019178,2]
[374520463,1753333836389,-460.0,0.00019178,2]
[374520464,1753333836398,-460.0,0.00019178,2]
[374520465,1753333836407,-307.42883496,0.00019178,2]
[374520466,1753333836417,-460.0,0.00019178,2]
[374520467,1753333836427,-460.0,0.00019178,2]
[374520468,1753333836436,-460.0,0.00019178,2]
[374520469,1753333836446,-460.0,0.00019178,2]
[374520470,1753333836458,-463.59719469,0.00019178,2]
[374520471,1753333836468,-460.0,0.00019178,2]
[374520472,1753333836478,-460.0,0.00019178,2]
[374520473,1753333836487,-460.0,0.00019178,2]
[374520474,1753333836497,-460.0,0.00019178,2]
[374520475,1753333836507,-460.0,0.00019178,2]
[374520476,1753333836516,-460.0,0.00019178,2]
[374520477,1753333836526,-460.0,0.00019178,2]
[374520478,1753333836536,-280.35647017,0.00019178,2]
[374520479,1753333836546,-463.44555663,0.00019178,2]
[374520480,1753333836556,-460.0,0.00019178,2]
[374520481,1753333836566,-460.0,0.00019178,2]
[374520482,1753333836576,-461.60335303,0.00019178,2]
[374520483,1753333836585,-460.0,0.00019178,2]
[374520484,1753333836595,-1993.45,0.00019178,2]
[374520485,1753333836604,-500.0,0.00019178,2]
[374520486,1753333836614,-460.0,0.00019178,2]
[374520487,1753333836634,-500.0,0.00019178,2]
[374520488,1753333836644,-600.57,0.00019178,2]
[374520489,1753333836654,-500.0,0.00019178,2]
[374520490,1753333836664,-460.0,0.00019178,2]
[374520491,1753333836675,-500.0,0.00019178,2]
[374520492,1753333836687,-500.0,0.00019178,2]
[374520493,1753333836698,-500.0,0.00019178,2]
[374520494,1753333836708,-465.9192075,0.00019178,2]
[374520495,1753333836718,-500.0,0.00019178,2]
[374520496,1753333836729,-666.0,0.00019178,2]
[374520497,1753333836739,-619.703551,0.00019178,2]
[374520498,1753333836749,-18387.22000812,0.00019178,2]
[374520499,1753333836773,-5508.64582853,0.00019178,2]
[374520500,1753333836800,-4463.71083206,0.00019178,2]
[374520501,1753333836814,-585.74914229,0.00019178,2]
[374520520,1753333838959,-460.0,0.00019178,2]
[374520522,1753333838970,-460.0,0.00019178,2]
[374520524,1753333838980,-461.01893644,0.00019178,2]
[374520525,1753333838990,-460.0,0.00019178,2]
[374520526,1753333838999,-500.0,0.00019178,2]
[374520527,1753333839009,-460.0,0.00019178,2]
[374520529,1753333839019,-500.0,0.00019178,2]
[374520530,1753333839028,-4159.90757565,0.00019178,2]
[374520531,1753333839040,-1842.3,0.00019178,2]
[374520532,1753333839056,-3706.82875191,0.00019178,2]
[374520533,1753333839073,-589.6,0.00019178,2]
[374520534,1753333839084,-10756.03786144,0.00019178,2]
[374520535,1753333839094,-150.0,0.00019269,2]
[374520536,1753333839103,-387.80039225,0.00019278,2]
[374520537,1753333839112,-403.64391724,0.00019352,2]
[374520538,1753333839122,-7367.63120359,0.00019352,2]
[374520539,1753333839133,-644.40790517,0.00019451,2]
[374520540,1753333839142,-500.0,0.00019451,2]
[374520541,1753333839152,-460.0,0.00019452,2]
[374520542,1753333839161,-494.15987481,0.00019452,2]
[374520543,1753333839170,-461.19875926,0.00019452,2]
[374520544,1753333839180,-462.56908952,0.00019452,2]
[374520545,1753333839189,-462.12762289,0.00019452,2]
[374520546,1753333839199,-460.0,0.00019452,2]
[374520547,1753333839208,-460.0,0.00019452,2]
[374520548,1753333839218,-209.35839772,0.00019452,2]
[374520549,1753333839227,-460.0,0.00019452,2]
[374520550,1753333839236,-460.0,0.00019452,2]
[374520551,1753333839245,-460.0,0.00019452,2]
[374520552,1753333839255,-460.0,0.00019452,2]
[374520553,1753333839265,-460.0,0.00019452,2]
[374520554,1753333839275,-460.0,0.00019452,2]
[374520555,1753333839284,-460.0,0.00019452,2]
[374520556,1753333839294,-460.0,0.00019452,2]
[374520557,1753333839303,-460.0,0.00019452,2]
[374520558,1753333839312,-460.0,0.00019452,2]
[374520559,1753333839322,-460.0,0.00019452,2]
[374520560,1753333839331,-469.14287676,0.00019452,2]
[374520561,1753333839339,-460.0,0.00019452,2]
[374520562,1753333839349,-460.0,0.00019452,2]
[374520563,1753333839358,-460.0,0.00019452,2]
[374520564,1753333839367,-460.0,0.00019452,2]
[374520565,1753333839376,-460.0,0.00019452,2]
[374520566,1753333839388,-460.0,0.00019452,2]
[374520567,1753333839398,-460.0,0.00019452,2]
[374520568,1753333839407,-460.0,0.00019452,2]
[374520569,1753333839417,-800.07,0.00019452,2]
[374520570,1753333839426,-460.0,0.00019452,2]
[374520571,1753333839436,-460.0,0.00019452,2]
[374520572,1753333839445,-462.00428462,0.00019452,2]
[374520573,1753333839455,-460.0,0.00019452,2]
[374520574,1753333839464,-460.0,0.00019452,2]
[374520575,1753333839474,-460.0,0.00019452,2]
[374520576,1753333839483,-460.0,0.00019452,2]
[374520577,1753333839493,-460.0,0.00019452,2]
[374520578,1753333839503,-460.0,0.00019452,2]
[374520579,1753333839512,-460.0,0.00019452,2]
[374520580,1753333839521,-461.22322508,0.00019452,2]
[374520581,1753333839531,-460.0,0.00019452,2]
[374520582,1753333839540,-460.0,0.00019452,2]
[374520583,1753333839549,-460.0,0.00019452,2]
[374520584,1753333839559,-460.0,0.00019452,2]
[374520585,1753333839568,-2969.95,0.00019452,2]
[374520586,1753333839577,-460.0,0.00019452,2]
[374520587,1753333839586,-460.0,0.00019452,2]
[374520588,1753333839596,-460.0,0.00019452,2]
[374520589,1753333839605,-460.0,0.00019452,2]
[374520590,1753333839615,-485.08884478,0.00019452,2]
[374520591,1753333839624,-460.0,0.00019452,2]
[374520592,1753333839635,-460.0,0.00019452,2]
[374520593,1753333839645,-460.0,0.00019452,2]
[374520594,1753333839654,-460.0,0.00019452,2]
[374520595,1753333839666,-463.33362544,0.00019452,2]
[374520596,1753333839676,-460.0,0.00019452,2]
[374520597,1753333839689,-460.0,0.00019452,2]
[374520598,1753333839699,-460.0,0.00019452,2]
[374520599,1753333839709,-460.0,0.00019452,2]
[374520600,1753333839719,-337.69784731,0.00019452,2]
[374520601,1753333839729,-467.28,0.00019452,2]
[374520602,1753333839740,-460.0,0.00019452,2]
[374520603,1753333839749,-460.0,0.00019452,2]
[374520604,1753333839760,-472.15610728,0.00019452,2]
[374520605,1753333839769,-460.0,0.00019452,2]
[374520606,1753333839778,-460.0,0.00019452,2]
[374520607,1753333839788,-460.0,0.00019452,2]
[374520608,1753333839798,-460.0,0.00019452,2]
[374520609,1753333839807,-460.0,0.00019452,2]
[374520610,1753333839816,-460.0,0.00019452,2]
[374520611,1753333839826,-460.0,0.00019452,2]
[374520612,1753333839835,-460.0,0.00019452,2]
[374520613,1753333839844,-460.0,0.00019452,2]
[374520614,1753333839854,-269.56,0.00019452,2]
[374520615,1753333839864,-460.0,0.00019452,2]
[374520616,1753333839874,-1252.76,0.00019452,2]
[374520617,1753333839884,-460.0,0.00019452,2]
[374520618,1753333839893,-460.0,0.00019452,2]
[374520619,1753333839902,-460.0,0.00019452,2]
[374520620,1753333839912,-460.0,0.00019452,2]
[374520621,1753333839921,-473.83700049,0.00019452,2]
[374520622,1753333839931,-460.0,0.00019452,2]
[374520623,1753333839940,-460.0,0.00019452,2]
[374520624,1753333839949,-460.0,0.00019452,2]
[374520625,1753333839959,-460.0,0.00019452,2]
[374520626,1753333839969,-460.0,0.00019452,2]
[374520627,1753333839978,-729.61,0.00019452,2]
[374520628,1753333839988,-729.61,0.00019452,2]
[374520629,1753333839997,-460.0,0.00019452,2]
[374520630,1753333840007,-529.45,0.00019452,2]
[374520631,1753333840016,-460.0,0.00019452,2]
[374520632,1753333840025,-460.0,0.00019452,2]
[374520633,1753333840035,-460.0,0.00019452,2]
[374520634,1753333840044,-460.0,0.00019452,2]
[374520635,1753333840053,-460.0,0.00019452,2]
[374520636,1753333840063,-460.0,0.00019452,2]
[374520637,1753333840072,-460.0,0.00019452,2]
[374520638,1753333840082,-460.0,0.00019452,2]
[374520639,1753333840091,-460.0,0.00019452,2]
[374520640,1753333840101,-460.0,0.00019452,2]
[374520641,1753333840110,-460.0,0.00019452,2]
[374520642,1753333840119,-756.42667042,0.00019452,2]
[374520643,1753333840129,-460.0,0.00019452,2]
[374520644,1753333840139,-460.0,0.00019452,2]
[374520645,1753333840148,-460.0,0.00019452,2]
[374520646,1753333840159,-1235.77,0.00019452,2]
[374520647,1753333840169,-460.0,0.00019452,2]
[374520648,1753333840178,-460.0,0.00019452,2]
[374520649,1753333840187,-460.0,0.00019452,2]
[374520650,1753333840197,-460.0,0.00019452,2]
[374520651,1753333840206,-460.0,0.00019452,2]
[374520652,1753333840215,-460.0,0.00019452,2]
[374520653,1753333840225,-460.0,0.00019452,2]
[374520654,1753333840234,-460.0,0.00019452,2]
[374520655,1753333840243,-460.0,0.00019452,2]
[374520656,1753333840253,-460.0,0.00019452,2]
[374520657,1753333840263,-461.70816429,0.00019452,2]
[374520659,1753333840273,-460.0,0.00019452,2]
[374520660,1753333840283,-460.0,0.00019452,2]
[374520661,1753333840292,-460.0,0.00019452,2]
[374520662,1753333840302,-534.43300934,0.00019452,2]
[374520663,1753333840311,-460.0,0.00019452,2]
[374520664,1753333840320,-460.0,0.00019452,2]
[374520666,1753333840453,-460.0,0.00019452,2]
[374520667,1753333840462,-460.0,0.00019452,2]
[374520668,1753333840469,-460.0,0.00019452,2]
[374520669,1753333840476,-460.0,0.00019452,2]
[374520670,1753333840484,-460.0,0.00019452,2]
[374520671,1753333840491,-663.45,0.00019452,2]
[374520672,1753333840499,-456.99599647,0.00019452,2]
[374520673,1753333840507,-665.85,0.00019452,2]
[374520674,1753333840514,-460.0,0.00019452,2]
[374520675,1753333840523,-460.0,0.00019452,2]
[374520676,1753333840530,-460.0,0.00019452,2]
[374520677,1753333840538,-2525.79,0.00019452,2]
[374520678,1753333840545,-817.43,0.00019452,2]
[374520679,1753333840554,-460.0,0.00019452,2]
[374520680,1753333840564,-460.0,0.00019452,2]
[374520681,1753333840574,-815.54,0.00019452,2]
[374520682,1753333840583,-461.25757545,0.00019452,2]
[374520683,1753333840592,-460.0,0.00019452,2]
[374520684,1753333840602,-460.0,0.00019452,2]
[374520685,1753333840611,-460.0,0.00019452,2]
[374520686,1753333840621,-460.0,0.00019452,2]
[374520687,1753333840631,-460.0,0.00019452,2]
[374520688,1753333840641,-741.2,0.00019452,2]
[374520689,1753333840650,-461.36864435,0.00019452,2]
[374520690,1753333840660,-460.0,0.00019452,2]
[374520691,1753333840670,-460.0,0.00019452,2]
[374520692,1753333840680,-591.51,0.00019452,2]
[374520693,1753333840691,-460.0,0.00019452,2]
[374520694,1753333840701,-460.0,0.00019452,2]
[374520695,1753333840710,-460.0,0.00019452,2]
[374520696,1753333840719,-460.0,0.00019452,2]
[374520697,1753333840730,-460.0,0.00019452,2]
[374520698,1753333840738,-460.0,0.00019452,2]
[374520699,1753333840747,-460.0,0.00019452,2]
[374520700,1753333840756,-460.0,0.00019452,2]
[374520701,1753333840766,-460.0,0.00019452,2]
[374520702,1753333840775,-460.0,0.00019452,2]
[374520703,1753333840785,-508.75,0.00019452,2]
[374520704,1753333840795,-460.0,0.00019452,2]
[374520705,1753333840804,-460.0,0.00019452,2]
[374520706,1753333840814,-460.0,0.00019452,2]
[374520707,1753333840824,-460.0,0.00019452,2]
[374520708,1753333840834,-460.0,0.00019452,2]
[374520709,1753333840843,-460.0,0.00019452,2]
[374520710,1753333840853,-500.4474808,0.00019452,2]
[374520711,1753333840863,-460.0,0.00019452,2]
[374520712,1753333840872,-460.0,0.00019452,2]
[374520713,1753333840882,-460.0,0.00019452,2]
[374520714,1753333840892,-460.0,0.00019452,2]
[374520715,1753333840901,-460.0,0.00019452,2]
[374520716,1753333840911,-460.0,0.00019452,2]
[374520717,1753333840920,-1993.45,0.00019452,2]
[374520718,1753333840929,-600.57,0.00019452,2]
[374520719,1753333840939,-460.0,0.00019452,2]
[374520720,1753333840948,-564.3768852,0.00019452,2]
[374520721,1753333840958,-217.75760405,0.00019452,2]
[374520723,1753333840968,-460.0,0.00019452,2]
[374520725,1753333840978,-500.0,0.00019473,2]
[374520727,1753333840988,-268.98453325,0.00019473,2]
[374520729,1753333840997,-255.66133603,0.00019561,2]
[374520731,1753333841007,-461.43117658,0.00019726,2]
[374520733,1753333841016,-460.0,0.00019726,2]
[374520735,1753333841026,-460.0,0.00019726,2]
[374520737,1753333841036,-460.0,0.00019726,2]
[374520739,1753333841046,-423.88460427,0.00019726,2]
[374520741,1753333841057,-460.0,0.00019726,2]
[374520743,1753333841066,-351.9958886,0.00019726,2]
[374520745,1753333841076,-533.10667816,0.00019726,2]
[374520747,1753333841086,-460.0,0.00019726,2]
[374520749,1753333841096,-460.0,0.00019726,2]
[374520751,1753333841106,-460.0,0.00019726,2]
[374520753,1753333841115,-460.0,0.00019726,2]
[374520755,1753333841125,-800.07,0.00019726,2]
[374520757,1753333841135,-270.45844601,0.00019726,2]
[374520759,1753333841145,-460.0,0.00019726,2]
[374520761,1753333841154,-460.0,0.00019726,2]
[374520763,1753333841163,-466.52895291,0.00019726,2]
[374520765,1753333841173,-460.0,0.00019726,2]
[374520767,1753333841182,-460.0,0.00019726,2]
[374520769,1753333841191,-2969.95,0.00019726,2]
[374520771,1753333841201,-540.38559352,0.00019726,2]
[374520773,1753333841212,-460.0,0.00019726,2]
[374520775,1753333841221,-460.0,0.00019726,2]
[374520777,1753333841230,-460.0,0.00019726,2]
[374520779,1753333841239,-467.28,0.00019726,2]
[374520781,1753333841249,-460.0,0.00019726,2]
[374520783,1753333841259,-460.0,0.00019726,2]
[374520785,1753333841270,-460.0,0.00019726,2]
[374520787,1753333841279,-460.0,0.00019726,2]
[374520789,1753333841288,-460.0,0.00019726,2]
[374520791,1753333841298,-460.0,0.00019726,2]
[374520793,1753333841307,-1252.76,0.00019726,2]
[374520795,1753333841316,-460.0,0.00019726,2]
[374520797,1753333841326,-460.0,0.00019726,2]
[374520798,1753333841335,-460.0,0.00019726,2]
[374520800,1753333841344,-729.61,0.00019726,2]
[374520803,1753333841354,-729.61,0.00019726,2]
[374520804,1753333841363,-460.0,0.00019726,2]
[374520806,1753333841372,-529.45,0.00019726,2]
[374520808,1753333841382,-460.0,0.00019726,2]
[374520810,1753333841392,-460.0,0.00019726,2]
[374520812,1753333841402,-460.0,0.00019726,2]
[374520814,1753333841411,-460.0,0.00019726,2]
[374520816,1753333841421,-482.82,0.00019726,2]
[374520818,1753333841431,-460.0,0.00019726,2]
[374520820,1753333841440,-368.32373879,0.00019726,2]
[374520822,1753333841449,-460.0,0.00019726,2]
[374520824,1753333841459,-1235.77,0.00019726,2]
[374520826,1753333841468,-460.0,0.00019726,2]
[374520828,1753333841478,-460.0,0.00019726,2]
[374520830,1753333841487,-460.0,0.00019726,2]
[374520832,1753333841497,-460.0,0.00019726,2]
[374520835,1753333841507,-460.0,0.00019726,2]
[374520836,1753333841516,-460.0,0.00019726,2]
[374520839,1753333841526,-460.0,0.00019726,2]
[374520841,1753333841535,-460.0,0.00019726,2]
[374520842,1753333841545,-466.069496,0.00019726,2]
[374520844,1753333841554,-460.0,0.00019726,2]
[374520846,1753333841564,-460.0,0.00019726,2]
[374520848,1753333841573,-460.0,0.00019726,2]
[374520851,1753333841583,-460.0,0.00019726,2]
[374520853,1753333841592,-460.0,0.00019726,2]
[374520854,1753333841602,-663.45,0.00019726,2]
[374520856,1753333841611,-665.85,0.00019726,2]
[374520858,1753333841622,-460.0,0.00019726,2]
[374520861,1753333841636,-460.0,0.00019726,2]
[374520862,1753333841646,-460.0,0.00019726,2]
[374520865,1753333841655,-2525.79,0.00019726,2]
[374520866,1753333841665,-817.43,0.00019726,2]
[374520869,1753333841675,-460.0,0.00019726,2]
[374520871,1753333841686,-815.54,0.00019726,2]
[374520873,1753333841698,-460.0,0.00019726,2]
[374520875,1753333841708,-460.0,0.00019726,2]
[374520877,1753333841718,-463.7885405,0.00019726,2]
[374520879,1753333841729,-460.0,0.00019726,2]
[374520881,1753333841738,-741.2,0.00019726,2]
[374520883,1753333841748,-467.6280778,0.00019726,2]
[374520885,1753333841757,-591.51,0.00019726,2]
[374520887,1753333841768,-460.0,0.00019726,2]
[374520888,1753333841778,-460.0,0.00019726,2]
[374520890,1753333841787,-460.0,0.00019726,2]
[374520892,1753333841797,-460.0,0.00019726,2]
[374520894,1753333841806,-508.75,0.00019726,2]
[374520896,1753333841815,-460.0,0.00019726,2]
[374520899,1753333841825,-460.0,0.00019726,2]
[374520901,1753333841835,-460.0,0.00019726,2]
[374520903,1753333841844,-460.0,0.00019726,2]
[374520904,1753333841853,-460.0,0.00019726,2]
[374520906,1753333841862,-460.0,0.00019726,2]
[374520908,1753333841873,-460.0,0.00019726,2]
[374520911,1753333841883,-1993.45,0.00019726,2]
[374520912,1753333841894,-600.57,0.00019726,2]
[374520915,1753333841904,-460.0,0.00019726,2]
[374520916,1753333841914,-160.0,0.0001996,2]
[374520918,1753333841923,-160.0,0.00019963,2]
[374520920,1753333841932,-231.16387093,0.00019963,2]
[374520922,1753333841941,-160.0,0.00019963,2]
[374520924,1753333841951,-160.0,0.00019963,2]
[374520926,1753333841960,-214.7213231,0.00019963,2]
[374520928,1753333841970,-526.24749348,0.00019963,2]
[374520930,1753333841979,-840.23756827,0.00019963,2]
[374520932,1753333841989,-215.88777038,0.00019963,2]
[374520934,1753333841998,-186.10269019,0.00019969,2]
[374520936,1753333842008,-91958.85874478,0.0001999,2]
[374520938,1753333842017,-460.0,0.0002,2]
[374520940,1753333842026,-460.0,0.0002,2]
[374520942,1753333842035,-460.0,0.0002,2]
[374520944,1753333842045,-396.48,0.0002,2]
[374520946,1753333842054,-460.0,0.0002,2]
[374520948,1753333842064,-460.0,0.0002,2]
[374520950,1753333842073,-460.0,0.0002,2]
[374520952,1753333842083,-800.07,0.0002,2]
[374520954,1753333842092,-460.0,0.0002,2]
[374520956,1753333842102,-460.0,0.0002,2]
[374520958,1753333842111,-2969.95,0.0002,2]
[374520960,1753333842121,-460.0,0.0002,2]
[374520962,1753333842130,-460.0,0.0002,2]
[374520964,1753333842143,-245.27122925,0.0002,2]
[374520966,1753333842152,-487.6,0.0002,2]
[374520968,1753333842161,-467.28,0.0002,2]
[374520970,1753333842171,-460.0,0.0002,2]
[374520972,1753333842180,-460.0,0.0002,2]
[374520974,1753333842189,-460.0,0.0002,2]
[374520976,1753333842199,-460.0,0.0002,2]
[374520978,1753333842208,-460.0,0.0002,2]
[374520980,1753333842217,-1252.76,0.0002,2]
[374520982,1753333842227,-460.0,0.0002,2]
[374520984,1753333842236,-472.97764411,0.0002,2]
[374520986,1753333842245,-729.61,0.0002,2]
[374520988,1753333842254,-460.0,0.0002,2]
[374520990,1753333842264,-729.61,0.0002,2]
[374520992,1753333842273,-529.45,0.0002,2]
[374520994,1753333842282,-460.0,0.0002,2]
[374520996,1753333842291,-460.0,0.0002,2]
[374520998,1753333842301,-460.0,0.0002,2]
[374521000,1753333842311,-460.0,0.0002,2]
[374521002,1753333842320,-460.0,0.0002,2]
[374521004,1753333842330,-1235.77,0.0002,2]
[374521006,1753333842339,-460.0,0.0002,2]
[374521008,1753333842348,-460.0,0.0002,2]
[374521010,1753333842358,-460.0,0.0002,2]
[374521012,1753333842367,-460.0,0.0002,2]
[374521014,1753333842377,-460.0,0.0002,2]
[374521016,1753333842387,-460.0,0.0002,2]
[374521018,1753333842397,-460.0,0.0002,2]
[374521020,1753333842406,-165.12,0.0002,2]
[374521022,1753333842415,-460.0,0.0002,2]
[374521024,1753333842425,-460.0,0.0002,2]
[374521026,1753333842434,-663.45,0.0002,2]
[374521028,1753333842444,-665.85,0.0002,2]
[374521030,1753333842453,-460.0,0.0002,2]
[374521032,1753333842462,-460.0,0.0002,2]
[374521034,1753333842471,-2525.79,0.0002,2]
[374521036,1753333842481,-817.43,0.0002,2]
[374521038,1753333842490,-460.0,0.0002,2]
[374521040,1753333842499,-815.54,0.0002,2]
[374521042,1753333842509,-460.0,0.0002,2]
[374521044,1753333842518,-741.2,0.0002,2]
[374521046,1753333842528,-591.51,0.0002,2]
[374521048,1753333842537,-442.80389605,0.0002,2]
[374521050,1753333842546,-460.0,0.0002,2]
[374521051,1753333842555,-508.75,0.0002,2]
[374521053,1753333842565,-460.0,0.0002,2]
[374521055,1753333842574,-460.0,0.0002,2]
[374521057,1753333842583,-460.0,0.0002,2]
[374521059,1753333842592,-460.0,0.0002,2]
[374521061,1753333842601,-460.0,0.0002,2]
[374521063,1753333842610,-460.0,0.0002,2]
[374521065,1753333842619,-600.57,0.0002,2]
[374521066,1753333842628,-1993.45,0.0002,2]
[374521068,1753333842640,-460.0,0.0002,2]
[374521070,1753333842649,-281.0996548,0.00020021,2]
[374521072,1753333842658,-208.912297,0.00020187,2]
[374521074,1753333842667,-2157.0,0.00020238,2]
[374521076,1753333842677,-600.68,0.00020272,2]
[374521078,1753333842688,-460.0,0.00020273,2]
[374521080,1753333842700,-460.0,0.00020273,2]
[374521082,1753333842709,-460.0,0.00020273,2]
[374521084,1753333842719,-156.76,0.00020273,2]
[374521086,1753333842728,-460.0,0.00020273,2]
[374521088,1753333842738,-460.0,0.00020273,2]
[374521090,1753333842748,-800.07,0.00020273,2]
[374521092,1753333842757,-460.0,0.00020273,2]
[374521094,1753333842767,-460.0,0.00020273,2]
[374521096,1753333842776,-2969.95,0.00020273,2]
[374521098,1753333842785,-460.0,0.00020273,2]
[374521100,1753333842794,-487.6,0.00020273,2]
[374521102,1753333842803,-467.28,0.00020273,2]
[374521104,1753333842812,-460.0,0.00020273,2]
[374521106,1753333842822,-460.0,0.00020273,2]
[374521108,1753333842831,-460.0,0.00020273,2]
[374521110,1753333842841,-174.78131808,0.00020273,2]
[374521112,1753333842850,-1252.76,0.00020273,2]
[374521114,1753333842859,-460.0,0.00020273,2]
[374521115,1753333842868,-729.61,0.00020273,2]
[374521117,1753333842877,-460.0,0.00020273,2]
[374521119,1753333842887,-729.61,0.00020273,2]
[374521121,1753333842896,-529.45,0.00020273,2]
[374521123,1753333842906,-460.0,0.00020273,2]
[374521125,1753333842915,-460.0,0.00020273,2]
[374521127,1753333842924,-460.0,0.00020273,2]
[374521129,1753333842933,-460.0,0.00020273,2]
[374521131,1753333842943,-460.0,0.00020273,2]
[374521133,1753333842953,-1235.77,0.00020273,2]
[374521135,1753333842962,-460.0,0.00020273,2]
[374521137,1753333842972,-460.0,0.00020273,2]
[374521139,1753333842981,-460.0,0.00020273,2]
[374521141,1753333842991,-460.0,0.00020273,2]
[374521143,1753333843001,-460.0,0.00020273,2]
[374521145,1753333843010,-460.0,0.00020273,2]
[374521146,1753333843019,-460.0,0.00020273,2]
[374521148,1753333843028,-663.45,0.00020273,2]
[374521150,1753333843038,-665.85,0.00020273,2]
[374521152,1753333843047,-460.0,0.00020273,2]
[374521154,1753333843058,-460.0,0.00020273,2]
[374521156,1753333843068,-2525.79,0.00020273,2]
[374521158,1753333843078,-817.43,0.00020273,2]
[374521161,1753333843088,-468.71124717,0.00020273,2]
[374521163,1753333843098,-815.54,0.00020273,2]
[374521165,1753333843108,-460.0,0.00020273,2]
[374521167,1753333843118,-741.2,0.00020273,2]
[374521169,1753333843128,-591.51,0.00020273,2]
[374521171,1753333843140,-460.0,0.00020273,2]
[374521174,1753333843149,-508.75,0.00020273,2]
[374521177,1753333843159,-460.0,0.00020273,2]
[374521179,1753333843168,-460.0,0.00020273,2]
[374521182,1753333843177,-460.0,0.00020273,2]
[374521185,1753333843187,-460.0,0.00020273,2]
[374521188,1753333843196,-460.0,0.00020273,2]
[374521190,1753333843205,-600.57,0.00020273,2]
[374521193,1753333843214,-460.0,0.00020273,2]
[374521196,1753333843224,-1993.45,0.00020273,2]
[374521199,1753333843234,-403.64391722,0.00020487,2]
[374521202,1753333843243,-358.0,0.00020538,3]
[374521205,1753333843252,-460.0,0.00020547,2]
[374521219,1753333843363,-460.0,0.00020547,2]
[374521221,1753333843374,-460.0,0.00020547,2]
[374521223,1753333843383,-800.07,0.00020547,2]
[374521225,1753333843396,-460.0,0.00020547,2]
[374521227,1753333843406,-460.0,0.00020547,2]
[374521229,1753333843416,-2969.95,0.00020547,2]
[374521231,1753333843426,-460.0,0.00020547,2]
[374521233,1753333843436,-487.6,0.00020547,2]
[374521234,1753333843445,-467.28,0.00020547,2]
[374521236,1753333843455,-460.0,0.00020547,2]
[374521238,1753333843464,-460.0,0.00020547,2]
[374521240,1753333843474,-493.33135126,0.00020547,2]